bitfinex/quotes_BTCUSD_20241223
["timestamp","ask_amount","ask_price","bid_price","bid_amount"]
[1734928476827,0.1013084,96098.0,96087.0,0.01712138]
[1734928477035,0.1013084,96098.0,96090.0,0.002]
[1734928477719,0.1013084,96098.0,96091.0,0.208136]
[1734928478830,0.0001714,96110.0,96105.0,0.208103]
[1734928480308,0.0001714,96110.0,96105.0,0.13610299]
[1734928480510,0.1013084,96109.0,96087.0,0.16712138]
[1734928480713,0.00130069,96108.0,96095.0,0.208126]
[1734928480874,0.1013084,96107.0,96095.0,0.208126]
[1734928481965,0.1013084,96107.0,96101.0,0.208113]
[1734928482256,0.0001714,96110.0,96102.0,0.208112]
[1734928483680,0.0001714,96110.0,96102.0,0.416224]
[1734928484793,0.0001714,96110.0,96102.0,0.418224]
[1734928484962,0.0001714,96110.0,96102.0,0.416224]
[1734928485172,0.0001714,96110.0,96102.0,0.419224]
[1734928485578,0.0001714,96110.0,96102.0,0.416224]
[1734928485829,0.0001714,96110.0,96102.0,0.419224]
[1734928486471,0.0001714,96110.0,96102.0,0.43677229]
[1734928487557,0.0001714,96110.0,96102.0,0.43077229]
[1734928487775,0.0001714,96110.0,96108.0,0.208098]
[1734928489148,0.0001714,96110.0,96108.0,0.210098]
[1734928489548,0.0001714,96110.0,96108.0,0.22188317]
[1734928490999,0.0001714,96110.0,96108.0,0.22388317]
[1734928491176,0.0001714,96110.0,96108.0,0.22188317]
[1734928491700,0.0001714,96110.0,96108.0,0.22688317]
[1734928492474,0.0001714,96110.0,96108.0,0.24728779]
[1734928492684,0.0001714,96110.0,96108.0,0.01878517]
[1734928492900,0.0001714,96110.0,96108.0,0.005]
[1734928493731,0.0001714,96110.0,96109.0,0.208097]
[1734928495197,0.0001714,96110.0,96109.0,0.212097]
[1734928495399,0.0001714,96110.0,96109.0,0.14009699]
[1734928495542,0.0001714,96110.0,96107.0,0.01367332]
[1734928495750,0.0001714,96110.0,96109.0,0.211097]
[1734928496167,0.0001714,96110.0,96109.0,0.003]
[1734928496989,0.0001714,96110.0,96106.0,0.22175149]
[1734928497196,0.0001714,96110.0,96106.0,0.22175249]
[1734928497543,0.0001714,96110.0,96102.0,0.15]
[1734928497544,0.0001714,96110.0,96109.0,0.005]
[1734928497817,0.1014798,96110.0,96095.0,0.208127]
[1734928498032,0.10260908,96109.0,96095.0,0.208127]
[1734928498227,0.10260908,96109.0,96096.0,0.0210769]
[1734928498391,0.10260908,96109.0,96097.0,0.208123]
[1734928498564,0.10260908,96109.0,96106.0,0.004]
[1734928498992,0.10260908,96109.0,96097.0,0.208123]
[1734928499417,0.10260908,96109.0,96096.0,0.0210769]
[1734928499635,0.0001714,96110.0,96099.0,0.1246458]
[1734928500256,0.0001714,96110.0,96108.0,0.208099]
[1734928500581,0.0001714,96110.0,96096.0,0.0210769]
[1734928500785,0.0001714,96110.0,96107.0,0.2081]
[1734928501002,0.0001714,96110.0,96099.0,0.002]
[1734928501204,0.0001714,96110.0,96096.0,0.0210769]
[1734928501408,0.0001714,96110.0,96108.0,0.004]
[1734928501611,0.0001714,96110.0,96105.0,0.208104]
[1734928502095,0.0001714,96110.0,96108.0,0.208099]
[1734928503868,0.0001714,96110.0,96109.0,0.0812]
[1734928504094,0.0001714,96110.0,96109.0,0.2312]
[1734928506422,0.0011714,96110.0,96109.0,0.2392]
[1734928506632,0.0011714,96110.0,96109.0,0.2312]
[1734928506821,0.0001714,96110.0,96109.0,0.2312]
[1734928507025,0.0001714,96110.0,96109.0,0.2402]
[1734928507026,0.0011714,96110.0,96109.0,0.2402]
[1734928508459,0.0011714,96110.0,96109.0,0.3415084]
[1734928508844,0.0001714,96145.0,96121.0,0.208071]
[1734928509046,0.0001714,96145.0,96144.0,0.208021]
[1734928510094,0.00024382,96145.0,96144.0,0.208021]
[1734928510300,0.00024382,96145.0,96144.0,0.210021]
[1734928510508,0.00024382,96145.0,96144.0,0.002]
[1734928512890,0.00024382,96145.0,96137.0,0.01308395]
[1734928513134,0.00024382,96145.0,96130.0,0.3326958]
[1734928513768,0.00024382,96145.0,96144.0,0.001]
[1734928513941,0.00024382,96145.0,96130.0,0.34601332]
[1734928514266,0.00224382,96145.0,96130.0,0.34601332]
[1734928514994,0.00224382,96145.0,96130.0,0.55406432]
[1734928514995,0.00424382,96145.0,96130.0,0.55406432]
[1734928515108,0.00424382,96145.0,96135.0,0.20804]
[1734928515313,0.00424382,96145.0,96130.0,0.34601332]
[1734928515314,0.0782,96143.0,96130.0,0.06596331]
[1734928516204,0.0782,96143.0,96131.0,0.208049]
[1734928516815,0.0782,96143.0,96130.0,0.06596331]
[1734928516816,0.0782,96143.0,96136.0,0.208037]
[1734928517324,0.0792,96143.0,96136.0,0.208037]
[1734928517496,0.0782,96143.0,96132.0,0.208047]
[1734928517702,0.0792,96143.0,96132.0,0.208047]
[1734928518262,0.0792,96143.0,96132.0,0.416094]
[1734928519293,0.0802,96143.0,96132.0,0.416094]
[1734928519497,0.0782,96143.0,96132.0,0.416094]
[1734928519898,0.0792,96143.0,96132.0,0.416094]
[1734928521197,0.0792,96143.0,96132.0,0.208047]
[1734928522049,0.0792,96143.0,96137.0,0.208035]
[1734928522200,0.0792,96143.0,96132.0,0.208047]
[1734928522612,0.0782,96143.0,96132.0,0.208047]
[1734928522949,0.0792,96143.0,96132.0,0.208047]
[1734928523178,0.208025,96142.0,96130.0,0.06596331]
[1734928523322,0.41735118,96142.0,96130.0,0.06596331]
[1734928523525,0.20932518,96142.0,96130.0,0.06596331]
[1734928523741,0.20932518,96142.0,96131.0,0.208049]
[1734928523742,0.00130018,96142.0,96131.0,0.208049]
[1734928524148,0.00130018,96142.0,96136.0,0.208037]
[1734928524849,0.0782,96143.0,96131.0,0.208049]
[1734928525069,0.00024382,96145.0,96132.0,0.208047]
[1734928525272,0.00024382,96145.0,96133.0,0.208043]
[1734928525507,0.00024382,96145.0,96130.0,0.06596331]
[1734928525705,0.00024382,96145.0,96142.0,0.208024]
[1734928526466,0.00024382,96145.0,96135.0,0.41608]
[1734928526755,0.00024382,96145.0,96140.0,0.208028]
[1734928526888,0.00024382,96145.0,96142.0,0.001]
[1734928527490,0.00024382,96145.0,96143.0,0.208023]
[1734928530260,0.00024382,96145.0,96143.0,0.209023]
[1734928530461,0.00024382,96145.0,96143.0,0.001]
[1734928530667,0.00024382,96145.0,96143.0,0.209023]
[1734928531432,0.00024382,96145.0,96143.0,0.22216235]
[1734928533532,0.00024382,96145.0,96143.0,0.74221235]
[1734928534448,0.00024382,96145.0,96144.0,0.0206915]
[1734928534616,0.00024382,96145.0,96144.0,0.5407415]
[1734928535435,0.00024382,96145.0,96144.0,0.46874149]
[1734928536799,0.00024382,96145.0,96144.0,0.49067539]
[1734928537577,0.00024382,96145.0,96144.0,0.48967539]
[1734928537976,0.00024382,96145.0,96144.0,0.49067539]
[1734928539177,0.00024382,96145.0,96144.0,0.48967539]
[1734928539433,0.00024382,96145.0,96144.0,0.49467539]
[1734928540356,0.00024382,96145.0,96144.0,0.42267538]
[1734928540560,0.07884382,96145.0,96144.0,0.40174148]
[1734928540926,0.08464973,96145.0,96144.0,0.40174148]
[1734928541130,0.00024382,96145.0,96144.0,0.40174148]
[1734928541416,0.00604973,96145.0,96144.0,0.40174148]
[1734928541612,0.00024382,96145.0,96144.0,0.40174148]
[1734928542145,0.00024382,96145.0,96144.0,0.39674148]
[1734928542541,0.00024382,96145.0,96144.0,0.40174148]
[1734928542741,0.00024382,96145.0,96144.0,0.39674148]
[1734928542949,0.00604699,96145.0,96144.0,0.39674148]
[1734928543266,0.00024382,96145.0,96144.0,0.39774148]
[1734928543427,0.00413763,96145.0,96144.0,0.39774148]
[1734928543630,0.00024382,96145.0,96144.0,0.39774148]
[1734928543876,0.00024382,96145.0,96144.0,0.39674148]
[1734928544070,0.00604313,96145.0,96144.0,0.39674148]
[1734928544273,0.00604313,96145.0,96144.0,0.39774148]
[1734928544489,0.00734329,96145.0,96144.0,0.39774148]
[1734928544729,0.10865169,96145.0,96144.0,0.39774148]
[1734928544934,0.18725169,96145.0,96144.0,0.39774148]
[1734928545435,0.18725169,96145.0,96144.0,0.32574147]
[1734928545436,0.18595153,96145.0,96144.0,0.32574147]
[1734928545642,0.18725174,96145.0,96144.0,0.32474147]
[1734928545954,0.18595153,96145.0,96144.0,0.32774147]
[1734928546127,0.18595153,96145.0,96144.0,0.32474147]
[1734928546542,0.18595153,96145.0,96144.0,0.32674147]
[1734928547350,0.18595153,96145.0,96144.0,0.32474147]
[1734928548810,0.18795153,96145.0,96144.0,0.32474147]
[1734928549018,0.08464313,96145.0,96144.0,0.32474147]
[1734928549332,0.08664313,96145.0,96144.0,0.32474147]
[1734928549485,0.08464313,96145.0,96144.0,0.32474147]
[1734928549907,0.08564313,96145.0,96144.0,0.32474147]
[1734928550271,0.08564313,96145.0,96144.0,0.32482707]
[1734928550500,0.08564313,96145.0,96144.0,0.25282706]
[1734928551814,0.18825168,96145.0,96144.0,0.25282706]
[1734928552622,0.18725168,96145.0,96144.0,0.25282706]
[1734928552828,0.21025168,96145.0,96144.0,0.25282706]
[1734928553001,0.20995153,96145.0,96144.0,0.25282706]
[1734928553799,0.20895153,96145.0,96144.0,0.25282706]
[1734928554016,0.30180362,96145.0,96144.0,0.25282706]
[1734928555140,0.20895153,96145.0,96144.0,0.25282706]
[1734928555341,0.21095153,96145.0,96144.0,0.18082705]
[1734928555643,0.20895153,96145.0,96144.0,0.18082705]
[1734928556028,0.21195153,96145.0,96144.0,0.18082705]
[1734928559307,0.18895153,96145.0,96144.0,0.18082705]
[1734928559913,0.00904313,96145.0,96144.0,0.18082705]
[1734928560275,0.00799856,96145.0,96144.0,0.18082705]
[1734928561118,0.00799856,96145.0,96144.0,0.42342231]
[1734928561119,0.00324382,96145.0,96144.0,0.42342231]
[1734928561559,0.00024382,96145.0,96144.0,0.42342231]
[1734928561872,0.00324382,96145.0,96144.0,0.42342231]
[1734928562298,0.00024382,96145.0,96144.0,0.42342231]
[1734928562544,0.00024382,96145.0,96144.0,0.42842231]
[1734928563446,0.00147123,96170.0,96154.0,0.207998]
[1734928563646,0.207971,96167.0,96146.0,0.15]
[1734928563855,0.1026083,96166.0,96148.0,0.15]
[1734928564021,0.10457251,96166.0,96148.0,0.15]
[1734928564229,0.207975,96165.0,96150.0,0.1246458]
[1734928564546,0.00325978,96164.0,96150.0,0.1246458]
[1734928564901,0.0012999,96164.0,96150.0,0.1246458]
[1734928565104,0.3092864,96164.0,96150.0,0.1246458]
[1734928565313,0.00325763,96163.0,96151.0,0.13600599]
[1734928565512,0.00129992,96163.0,96150.0,0.1246458]
[1734928566770,0.00129992,96163.0,96151.0,0.208006]
[1734928566928,0.00129992,96163.0,96151.0,1.067326]
[1734928567335,0.00129992,96163.0,96151.0,0.85932]
[1734928567783,0.00129992,96163.0,96152.0,0.208003]
[1734928567985,0.002,96163.0,96152.0,1.275326]
[1734928568136,0.002,96163.0,96158.0,0.207989]
[1734928568337,0.0001714,96170.0,96152.0,0.85932]
[1734928568603,0.0001714,96170.0,96153.0,0.208001]
[1734928568871,0.002,96163.0,96153.0,1.067311]
[1734928569265,0.004,96163.0,96153.0,1.067311]
[1734928569437,0.00147123,96170.0,96153.0,1.067311]
[1734928569644,0.00147123,96170.0,96160.0,0.1246458]
[1734928569847,0.00347123,96170.0,96160.0,0.1246458]
[1734928570047,0.00482988,96169.0,96160.0,0.3326308]
[1734928570418,0.0021714,96170.0,96160.0,0.26063079]
[1734928570618,0.0021714,96170.0,96166.0,0.207972]
[1734928571077,0.0001714,96170.0,96166.0,0.415945]
[1734928571278,0.0001714,96170.0,96166.0,0.207972]
[1734928571480,0.0001714,96170.0,96162.0,0.20798]
[1734928571653,0.0001714,96170.0,96160.0,0.05264579]
[1734928571863,0.0001714,96170.0,96160.0,0.06509101]
[1734928572102,0.0001714,96170.0,96166.0,0.001]
[1734928573002,0.0001714,96170.0,96160.0,0.06509101]
[1734928573703,0.0001714,96170.0,96161.0,0.207984]
[1734928574594,0.0001714,96170.0,96167.0,0.207969]
[1734928575003,0.0001712,96169.0,96167.0,0.207969]
[1734928576013,0.0001712,96169.0,96167.0,1.067209]
[1734928577515,0.0001712,96169.0,96167.0,1.070209]
[1734928577731,0.0001712,96169.0,96167.0,1.067209]
[1734928578152,0.0001712,96169.0,96167.0,1.071209]
[1734928578928,0.0001712,96169.0,96167.0,1.067209]
[1734928579133,0.0811,96168.0,96167.0,0.86424]
[1734928579330,0.0811,96168.0,96167.0,0.85924]
[1734928580157,0.08608082,96168.0,96167.0,0.85924]
[1734928580810,0.08608082,96168.0,96167.0,0.86424]
[1734928581220,0.08608082,96168.0,96167.0,0.85924]
[1734928581519,0.08608082,96168.0,96167.0,0.78823999]
[1734928582147,0.08608082,96168.0,96167.0,0.78723999]
[1734928582535,0.08808082,96168.0,96167.0,0.78723999]
[1734928583684,0.08608082,96168.0,96167.0,0.78723999]
[1734928584121,0.08808082,96168.0,96167.0,0.78723999]
[1734928584682,0.00698082,96168.0,96167.0,0.78723999]
[1734928584843,0.002,96168.0,96167.0,0.78723999]
[1734928585380,0.0001712,96169.0,96167.0,0.71523998]
[1734928585791,0.0001712,96169.0,96167.0,0.71623998]
[1734928586897,0.0001712,96169.0,96167.0,0.71523998]
[1734928587296,0.0001712,96169.0,96167.0,0.71623998]
[1734928588602,0.3092774,96168.0,96167.0,0.71623998]
[1734928588778,0.31425102,96168.0,96167.0,0.71623998]
[1734928590163,0.10628202,96168.0,96167.0,0.71523998]
[1734928590523,0.10628202,96168.0,96167.0,0.64323997]
[1734928590929,0.00497362,96168.0,96167.0,0.64323997]
[1734928591108,0.0001712,96169.0,96167.0,0.64423997]
[1734928591306,0.0001712,96169.0,96167.0,0.64323997]
[1734928593204,0.00029404,96169.0,96167.0,0.64323997]
[1734928593363,0.00029404,96169.0,96167.0,0.64423997]
[1734928594001,0.00029404,96169.0,96167.0,0.64623997]
[1734928594169,0.00029404,96169.0,96167.0,0.64323997]
[1734928595087,0.00029404,96169.0,96167.0,0.64423997]
[1734928595495,0.00029404,96169.0,96167.0,0.57223996]
[1734928596652,0.00029404,96169.0,96168.0,0.207969]
[1734928597408,0.00029404,96169.0,96167.0,0.57123996]
[1734928597823,0.00686182,96168.0,96167.0,0.57123996]
[1734928599139,0.00029404,96169.0,96167.0,0.57123996]
[1734928599537,0.00029404,96169.0,96168.0,0.003]
[1734928599761,0.00029404,96169.0,96167.0,0.57123996]
[1734928600096,0.00029404,96169.0,96167.0,0.57323996]
[1734928600470,0.00029404,96169.0,96167.0,0.49932555]
[1734928600654,0.00029404,96169.0,96168.0,0.001]
[1734928602378,0.00029404,96169.0,96167.0,0.49932555]
[1734928603003,0.00029404,96169.0,96168.0,0.001]
[1734928604177,0.00029404,96169.0,96167.0,0.49932555]
[1734928605477,0.00029404,96169.0,96167.0,0.42732554]
[1734928605679,0.10160244,96169.0,96167.0,0.42732554]
[1734928605942,0.38657723,96168.0,96167.0,0.42732554]
[1734928606143,0.3852774,96168.0,96167.0,0.42732554]
[1734928606347,0.39354474,96168.0,96167.0,0.42732554]
[1734928606771,0.39354474,96168.0,96167.0,0.42832554]
[1734928607246,0.39354474,96168.0,96167.0,0.42932554]
[1734928609273,0.39354474,96168.0,96167.0,0.42732554]
[1734928609595,0.39354474,96168.0,96167.0,0.42832554]
[1734928609971,0.39354474,96168.0,96167.0,0.42732554]
[1734928610145,0.39354474,96168.0,96167.0,0.42832554]
[1734928610347,0.39354474,96168.0,96167.0,0.35632553]
[1734928611882,0.41654474,96168.0,96167.0,0.35632553]
[1734928611990,0.51654474,96168.0,96167.0,0.35632553]
[1734928612398,0.57648275,96168.0,96167.0,0.35532553]
[1734928612627,0.57648275,96168.0,96167.0,0.35632553]
[1734928613035,0.47648275,96168.0,96167.0,0.35532553]
[1734928613229,0.57748275,96168.0,96167.0,0.35532553]
[1734928613501,0.47748275,96168.0,96167.0,0.35532553]
[1734928614044,0.57648275,96168.0,96167.0,0.35532553]
[1734928614493,0.48548275,96168.0,96167.0,0.35632553]
[1734928615130,0.58548275,96168.0,96167.0,0.35632553]
[1734928615559,0.48548275,96168.0,96167.0,0.28432552]
[1734928615817,0.46474474,96168.0,96167.0,0.28332552]
[1734928616042,0.47374474,96168.0,96167.0,0.28432552]
[1734928616325,0.47374474,96168.0,96167.0,0.28332552]
[1734928616487,0.71645171,96168.0,96167.0,0.28432552]
[1734928616933,0.69845171,96168.0,96167.0,0.28332552]
[1734928617156,0.70745171,96168.0,96167.0,0.28432552]
[1734928617443,0.70745171,96168.0,96167.0,0.28332552]
[1734928617643,0.66967065,96168.0,96167.0,0.28432552]
[1734928618456,0.48274474,96168.0,96167.0,0.28432552]
[1734928618911,0.46474474,96168.0,96167.0,0.28332552]
[1734928619269,0.47374474,96168.0,96167.0,0.28432552]
[1734928619454,0.47374474,96168.0,96167.0,0.28332552]
[1734928619796,0.62290239,96168.0,96167.0,0.28432552]
[1734928620271,0.60490239,96168.0,96167.0,0.28332552]
[1734928620429,0.61390239,96168.0,96167.0,0.21232551]
[1734928620851,0.60490239,96168.0,96167.0,0.21132551]
[1734928621841,0.46474474,96168.0,96167.0,0.21132551]
[1734928621968,0.47374474,96168.0,96167.0,0.21232551]
[1734928622384,0.46474474,96168.0,96167.0,0.21132551]
[1734928622590,0.47374474,96168.0,96167.0,0.21232551]
[1734928623045,0.46474474,96168.0,96167.0,0.21132551]
[1734928623342,0.11857574,96168.0,96167.0,0.21232551]
[1734928623560,0.00843854,96168.0,96167.0,0.21132551]
[1734928624011,0.01743854,96168.0,96167.0,0.21232551]
[1734928625005,0.00843854,96168.0,96167.0,0.21132551]
[1734928625547,0.01643854,96168.0,96167.0,0.1403255]
[1734928625759,0.0081712,96168.0,96167.0,0.1845255]
[1734928626056,0.0091712,96168.0,96167.0,0.4105255]
[1734928626259,0.09340827,96180.0,96179.0,0.283945]
[1734928626473,0.07542639,96184.0,96183.0,0.1]
[1734928626652,0.207837,96230.0,96189.0,0.15]
[1734928626653,0.02135584,96190.0,96189.0,0.15]
[1734928626787,0.02135584,96190.0,96189.0,0.3273084]
[1734928627197,0.02135584,96190.0,96189.0,1.9064084]
[1734928627618,0.02135584,96190.0,96189.0,2.3143314]
[1734928627852,0.00012283,96192.0,96191.0,0.2]
[1734928628156,0.00012283,96192.0,96191.0,2.1064084]
[1734928629119,0.00012283,96192.0,96191.0,2.19832203]
[1734928629317,0.00012283,96192.0,96191.0,2.24352203]
[1734928629535,8.78e-06,96200.0,96199.0,0.679102]
[1734928629743,0.0001712,96242.0,96206.0,0.307887]
[1734928630092,0.0001712,96242.0,96240.0,0.207812]
[1734928630308,0.00029399,96242.0,96240.0,1.786612]
[1734928630662,0.00029399,96242.0,96241.0,0.15]
[1734928630903,0.00029399,96242.0,96241.0,1.7288]
[1734928631663,0.00029399,96242.0,96241.0,1.74956746]
[1734928632342,0.00029399,96242.0,96241.0,1.7288]
[1734928632581,0.00029399,96242.0,96241.0,1.5788]
[1734928633472,0.00029399,96242.0,96241.0,1.5818]
[1734928635175,0.10160239,96242.0,96241.0,1.5868]
[1734928635411,0.10160239,96242.0,96241.0,1.51479999]
[1734928635412,0.12460239,96242.0,96241.0,1.51479999]
[1734928635569,0.12590124,96242.0,96241.0,1.51479999]
[1734928635883,0.13110785,96242.0,96241.0,1.50679999]
[1734928636776,0.13110785,96242.0,96241.0,1.50779999]
[1734928638002,0.129809,96242.0,96241.0,1.50779999]
[1734928638266,0.12460239,96242.0,96241.0,1.50779999]
[1734928638997,0.12460239,96242.0,96241.0,1.50679999]
[1734928640002,0.10160239,96242.0,96241.0,1.50679999]
[1734928640322,0.10160239,96242.0,96241.0,1.50779999]
[1734928641550,0.10160239,96242.0,96241.0,1.43479998]
[1734928643448,0.12983258,96242.0,96241.0,1.43479998]
[1734928645466,0.12983258,96242.0,96241.0,1.36279997]
[1734928647408,0.12983258,96242.0,96241.0,1.36288547]
[1734928650537,0.12983258,96242.0,96241.0,1.29088546]
[1734928653939,0.13113144,96242.0,96241.0,1.29088546]
[1734928654531,0.21173144,96242.0,96241.0,1.29088546]
[1734928654679,0.21043258,96242.0,96241.0,1.29088546]
[1734928655060,0.22173154,96242.0,96241.0,1.29088546]
[1734928655468,0.22173154,96242.0,96241.0,1.21888545]
[1734928655893,0.22173154,96242.0,96241.0,1.21988545]
[1734928656209,0.22173154,96242.0,96241.0,1.21888545]
[1734928656567,0.22173154,96242.0,96241.0,1.21988545]
[1734928657315,0.22173154,96242.0,96241.0,0.0010855]
[1734928659404,0.12983258,96242.0,96241.0,0.0010855]
[1734928659645,0.13113157,96242.0,96241.0,0.0010855]
[1734928660441,0.207839,96229.0,96220.0,0.05373129]
[1734928660596,0.20783,96233.0,96216.0,0.21951233]
[1734928660800,0.207833,96231.0,96216.0,0.21951233]
[1734928661006,0.207837,96229.0,96216.0,0.207864]
[1734928662162,0.207837,96229.0,96211.0,0.21950929]
[1734928662402,0.207837,96229.0,96211.0,0.207876]
[1734928662606,0.207837,96229.0,96210.0,0.1246458]
[1734928662607,0.207849,96224.0,96210.0,0.1246458]
[1734928662979,0.415698,96224.0,96210.0,0.1246458]
[1734928663204,0.207849,96224.0,96210.0,0.1246458]
[1734928663750,0.207849,96224.0,96209.0,0.207879]
[1734928664609,0.00203531,96223.0,96211.0,0.207876]
[1734928665467,0.207852,96222.0,96209.0,0.207879]
[1734928665676,0.20988514,96222.0,96209.0,0.207879]
[1734928665873,0.207854,96221.0,96211.0,0.003]
[1734928666263,0.00203531,96221.0,96206.0,0.0788]
[1734928666471,0.207877,96211.0,96189.0,0.0467]
[1734928666678,0.207898,96201.0,96189.0,0.0467]
[1734928667103,0.00327576,96200.0,96189.0,0.0467]
[1734928667305,0.207898,96201.0,96190.0,0.1246458]
[1734928667508,0.207885,96207.0,96190.0,0.207921]
[1734928667717,0.207871,96214.0,96196.0,0.207907]
[1734928667927,0.00327142,96206.0,96197.0,0.1246458]
[1734928668143,0.20786,96219.0,96197.0,0.1246458]
[1734928668315,0.09265447,96237.0,96198.0,0.0777]
[1734928668549,0.00524815,96218.0,96204.0,0.20789]
[1734928668755,0.00199335,96218.0,96204.0,0.20789]
[1734928669165,0.207848,96224.0,96204.0,0.20789]
[1734928669367,0.00524815,96217.0,96204.0,0.20789]
[1734928669625,0.207852,96222.0,96204.0,0.415781]
[1734928669824,0.00524815,96216.0,96204.0,0.415781]
[1734928670043,0.00524815,96216.0,96209.0,0.207878]
[1734928670258,0.00524815,96216.0,96205.0,0.0489]
[1734928670462,0.207866,96216.0,96205.0,0.0489]
[1734928670878,0.207869,96214.0,96201.0,0.15]
[1734928671056,0.207869,96214.0,96203.0,8.56e-05]
[1734928671233,0.00524815,96215.0,96203.0,8.56e-05]
[1734928671643,0.207869,96214.0,96203.0,8.56e-05]
[1734928672214,0.00202728,96213.0,96203.0,8.56e-05]
[1734928673348,0.207874,96212.0,96203.0,8.56e-05]
[1734928673746,0.00202974,96211.0,96203.0,8.56e-05]
[1734928674433,0.00322343,96210.0,96203.0,8.56e-05]
[1734928674683,0.00322343,96210.0,96203.0,0.0010856]
[1734928674902,0.207871,96214.0,96203.0,8.56e-05]
[1734928675283,0.207871,96214.0,96203.0,0.0020856]
[1734928675642,0.00204992,96213.0,96203.0,0.0020856]
[1734928675874,0.207874,96212.0,96203.0,0.0040856]
[1734928676076,0.20992175,96212.0,96203.0,0.0040856]
[1734928677108,0.20992175,96212.0,96203.0,8.56e-05]
[1734928677280,0.00204775,96212.0,96203.0,8.56e-05]
[1734928677502,0.207847,96225.0,96203.0,8.56e-05]
[1734928677834,0.00205464,96211.0,96203.0,8.56e-05]
[1734928678035,0.1013084,96222.0,96205.0,0.207889]
[1734928678460,0.00208309,96221.0,96210.0,0.207877]
[1734928678867,0.00208309,96221.0,96203.0,8.56e-05]
[1734928679069,0.09265447,96226.0,96215.0,0.207866]
[1734928679222,0.09265447,96232.0,96217.0,0.207863]
[1734928679400,0.00208319,96220.0,96217.0,0.207863]
[1734928679632,0.09265447,96232.0,96217.0,0.207863]
[1734928680010,0.17185447,96237.0,96216.0,0.0775]
[1734928680407,0.20784,96228.0,96215.0,0.207866]
[1734928680726,0.001,96221.0,96215.0,0.207866]
[1734928681140,0.001,96221.0,96216.0,0.003]
[1734928681905,0.17185447,96237.0,96217.0,0.207863]
[1734928682451,0.0792,96237.0,96217.0,0.207863]
[1734928682840,0.00129898,96232.0,96217.0,0.415726]
[1734928684396,0.00129898,96236.0,96217.0,0.418726]
[1734928684649,0.207827,96234.0,96217.0,0.418726]
[1734928684872,0.00129898,96233.0,96217.0,0.418726]
[1734928685296,0.00129898,96233.0,96217.0,0.415726]
[1734928685500,0.00129898,96233.0,96217.0,0.419726]
[1734928685888,0.00129898,96233.0,96217.0,0.211863]
[1734928686725,0.00129898,96233.0,96217.0,0.004]
[1734928687273,0.00129898,96233.0,96218.0,0.207861]
[1734928687672,0.00129898,96233.0,96217.0,0.004]
[1734928687899,0.00129898,96233.0,96213.0,0.21942822]
[1734928688076,0.00129898,96233.0,96213.0,0.42729922]
[1734928688274,0.00129898,96233.0,96213.0,0.21942822]
[1734928688690,0.00129898,96233.0,96217.0,0.005]
[1734928689145,0.207839,96229.0,96217.0,0.005]
[1734928689333,0.207859,96219.0,96217.0,0.005]
[1734928689519,0.20140769,96218.0,96217.0,0.005]
[1734928690132,0.207878,96210.0,96209.0,8.56e-05]
[1734928690329,0.3321864,96210.0,96209.0,8.56e-05]
[1734928690528,0.207891,96204.0,96190.0,0.00053679]
[1734928691834,0.0813,96206.0,96190.0,0.00053679]
[1734928692036,0.207905,96198.0,96190.0,0.00053679]
[1734928693066,0.0020818,96197.0,96190.0,0.00053679]
[1734928693248,0.0020818,96197.0,96190.0,0.00453679]
[1734928693460,0.0020818,96197.0,96190.0,0.00053679]
[1734928693813,0.0020818,96197.0,96190.0,0.00653679]
[1734928694259,0.0020818,96197.0,96190.0,0.01353679]
[1734928694633,0.207895,96203.0,96190.0,0.01353679]
[1734928694864,0.00530542,96202.0,96190.0,0.01353679]
[1734928695192,0.207898,96201.0,96190.0,0.01353679]
[1734928695395,0.207898,96201.0,96190.0,0.01362239]
[1734928696228,0.207898,96201.0,96190.0,0.00062239]
[1734928696574,0.207898,96201.0,96190.0,0.00462239]
[1734928696782,0.00206972,96200.0,96190.0,0.00062239]
[1734928697149,0.00206972,96200.0,96190.0,0.00562239]
[1734928697441,0.00206972,96200.0,96190.0,0.00062239]
[1734928697788,0.207902,96199.0,96190.0,0.00362239]
[1734928698019,0.207902,96199.0,96190.0,0.00062239]
[1734928698228,0.207906,96197.0,96190.0,0.00362239]
[1734928698627,0.00206106,96196.0,96190.0,0.00362239]
[1734928699037,0.207898,96201.0,96190.0,0.00362239]
[1734928699275,0.00530542,96195.0,96190.0,0.00362239]
[1734928699449,0.0031246,96200.0,96190.0,0.00362239]
[1734928699671,0.415826,96194.0,96190.0,0.00062239]
[1734928699867,0.207917,96192.0,96190.0,0.00462239]
[1734928700046,0.08174745,96191.0,96190.0,0.00462239]
[1734928700248,0.08379206,96191.0,96190.0,0.00062239]
[1734928700445,0.18510046,96191.0,96190.0,0.00062239]
[1734928700650,0.20940002,96191.0,96190.0,0.00662239]
[1734928700851,0.20810046,96191.0,96190.0,0.00062239]
[1734928701278,0.20810046,96191.0,96190.0,0.00862239]
[1734928701470,0.20810046,96191.0,96190.0,0.00062239]
[1734928701678,0.20810046,96191.0,96167.0,8.56e-05]
[1734928701679,0.286569,96168.0,96167.0,8.56e-05]
[1734928702066,0.3878774,96168.0,96167.0,0.00020843]
[1734928702247,0.38984543,96168.0,96167.0,0.00020843]
[1734928702861,0.41284543,96168.0,96167.0,0.00020843]
[1734928703436,0.41684543,96168.0,96167.0,0.00020843]
[1734928703822,0.42084543,96168.0,96167.0,0.00020843]
[1734928704249,0.40101375,96168.0,96167.0,0.00020843]
[1734928704794,0.39301375,96168.0,96167.0,0.00020843]
[1734928705442,0.20804475,96168.0,96137.0,0.1376158]
[1734928705591,0.208001,96154.0,96145.0,0.00012284]
[1734928705981,0.208013,96148.0,96145.0,0.00012284]
[1734928706394,0.208016,96146.0,96145.0,0.00012284]
[1734928706601,0.3093244,96146.0,96145.0,0.00012284]
[1734928707014,0.3093244,96146.0,96145.0,0.00212284]
[1734928707243,0.3093244,96146.0,96145.0,0.00012284]
[1734928707616,0.3093244,96146.0,96145.0,0.00412284]
[1734928707778,0.3093244,96146.0,96145.0,0.00012284]
[1734928708175,0.3093244,96146.0,96145.0,0.00120854]
[1734928708874,0.3323244,96146.0,96145.0,0.00120854]
[1734928709500,0.33430968,96146.0,96145.0,0.00120854]
[1734928719305,0.33693345,96146.0,96145.0,0.00120854]
[1734928720439,0.208029,96141.0,96126.0,0.15]
[1734928720640,0.00198311,96140.0,96130.0,0.12471822]
[1734928721029,0.00262377,96146.0,96131.0,0.15]
[1734928721030,0.208017,96146.0,96131.0,0.15]
[1734928721242,0.208001,96153.0,96131.0,0.15]
[1734928721445,0.208006,96151.0,96131.0,0.358049]
[1734928721651,0.3093144,96151.0,96131.0,0.358049]
[1734928721925,0.3093144,96151.0,96137.0,0.208036]
[1734928722481,0.3093144,96151.0,96131.0,0.358049]